fUST/lending_fUST_20260416
["ID","MTS","AMOUNT","RATE_DAILY","PERIOD"]
[420617274,1776347467043,-2010.87,0.0001041,2]
[420617275,1776347467052,-2645.38,0.0001041,2]
[420617276,1776347467062,-500.0,0.0001041,2]
[420617277,1776347467074,-500.0,0.0001041,2]
[420617278,1776347467083,-500.0,0.0001041,2]
[420617279,1776347467093,-1162.62,0.0001041,2]
[420617280,1776347467103,-500.0,0.0001041,2]
[420617281,1776347467113,-500.0,0.0001041,2]
[420617282,1776347467123,-500.0,0.0001041,2]
[420617283,1776347467132,-1196.0,0.0001041,2]
[420617284,1776347467142,-1007.96,0.0001041,2]
[420617285,1776347467152,-500.0,0.0001041,2]
[420617286,1776347467162,-497.87340446,0.0001041,2]
[420617287,1776347467171,-1505.24,0.0001041,2]
[420617288,1776347467182,-2140.91,0.0001041,2]
[420617289,1776347467191,-500.0,0.0001041,2]
[420617290,1776347467201,-500.0,0.0001041,2]
[420617291,1776347467211,-500.0,0.0001041,2]
[420617292,1776347467220,-2489.33,0.0001041,2]
[420617293,1776347467230,-449.52059139,0.0001041,2]
[420617294,1776347467240,-3728.42,0.0001041,2]
[420617295,1776347467250,-784.3,0.0001041,2]
[420617296,1776347467259,-444.58848832,0.0001041,2]
[420617297,1776347467268,-4366.97,0.0001041,2]
[420617298,1776347467278,-1672.76,0.0001041,2]
[420617299,1776347467291,-2208.62,0.0001041,2]
[420617300,1776347467313,-500.0,0.0001041,2]
[420617301,1776347467335,-2586.11,0.0001041,2]
[420617302,1776347467356,-550.87,0.0001041,2]
[420617303,1776347467377,-1909.16,0.0001041,2]
[420617304,1776347467400,-1990.16,0.0001041,2]
[420617305,1776347467418,-554.7901,0.0001041,2]
[420617306,1776347467434,-1773.48,0.0001041,2]
[420617307,1776347467452,-2744.3,0.0001041,2]
[420617308,1776347467471,-1324.63,0.0001041,2]
[420617309,1776347467491,-1629.3,0.0001041,2]
[420617310,1776347467503,-6728.9,0.0001041,2]
[420617311,1776347467522,-500.0,0.0001041,2]
[420617312,1776347467540,-3011.81,0.0001041,2]
[420617313,1776347467559,-6483.02,0.0001041,2]
[420617314,1776347467577,-8143.34,0.0001041,2]
[420617315,1776347467591,-1204.32,0.0001041,2]
[420617316,1776347467607,-3004.44,0.0001041,2]
[420617317,1776347467622,-1897.3,0.0001041,2]
[420617318,1776347467638,-1433.85,0.0001041,2]
[420617319,1776347467653,-5719.79,0.0001041,2]
[420617320,1776347467668,-277.95436209,0.0001041,2]
[420617321,1776347467683,-500.0,0.0001041,2]
[420617322,1776347467697,-1953.06,0.0001041,2]
[420617323,1776347467712,-500.0,0.0001041,2]
[420617324,1776347467727,-1434.8,0.0001041,2]
[420617325,1776347467742,-500.0,0.0001041,2]
[420617326,1776347467756,-1718.57,0.0001041,2]
[420617327,1776347467771,-500.0,0.0001041,2]
[420617328,1776347467785,-2610.98,0.0001041,2]
[420617329,1776347467800,-500.0,0.0001041,2]
[420617330,1776347467817,-500.0,0.0001041,2]
[420617331,1776347467832,-500.0,0.0001041,2]
[420617332,1776347467846,-1095.12,0.0001041,2]
[420617333,1776347467862,-2304.72,0.0001041,2]
[420617334,1776347467876,-565.01,0.0001041,2]
[420617335,1776347467894,-4389.23,0.0001041,2]
[420617336,1776347467909,-500.0,0.0001041,2]
[420617337,1776347467924,-530.36,0.0001041,2]
[420617338,1776347467939,-500.0,0.0001041,2]
[420617339,1776347467954,-500.0,0.0001041,2]
[420617340,1776347467969,-583.46,0.0001041,2]
[420617341,1776347467984,-621.20133748,0.0001041,2]
[420617342,1776347468000,-7351.49,0.0001041,2]
[420617343,1776347468014,-972.65,0.0001041,2]
[420617344,1776347468031,-720.2,0.0001041,2]
[420617345,1776347468047,-1125.29,0.0001041,2]
[420617346,1776347468063,-500.0,0.0001041,2]
[420617347,1776347468078,-1840.97,0.0001041,2]
[420617348,1776347468094,-1150.52,0.0001041,2]
[420617349,1776347468108,-656.5,0.0001041,2]
[420617350,1776347468124,-500.0,0.0001041,2]
[420617351,1776347468139,-500.0,0.0001041,2]
[420617352,1776347468154,-3373.04,0.0001041,2]
[420617353,1776347468168,-961.2,0.0001041,2]
[420617354,1776347468184,-1605.32,0.0001041,2]
[420617355,1776347468198,-3525.06,0.0001041,2]
[420617356,1776347468214,-500.0,0.0001041,2]
[420617357,1776347468228,-32291.38,0.0001041,2]
[420617358,1776347468243,-887.71,0.0001041,2]
[420617359,1776347468257,-5369.93,0.0001041,2]
[420617360,1776347468271,-574.18,0.0001041,2]
[420617361,1776347468286,-1115.51,0.0001041,2]
[420617362,1776347468301,-3059.1,0.0001041,2]
[420617363,1776347468315,-500.0,0.0001041,2]
[420617364,1776347468329,-500.0,0.0001041,2]
[420617365,1776347468344,-576.3,0.0001041,2]
[420617366,1776347468354,-929.78,0.0001041,2]
[420617367,1776347468363,-19594.06,0.0001041,2]
[420617368,1776347468373,-665.79,0.0001041,2]
[420617369,1776347468383,-23951.21,0.0001041,2]
[420617370,1776347468392,-500.0,0.0001041,2]
[420617371,1776347468402,-500.0,0.0001041,2]
[420617372,1776347468411,-537.41,0.0001041,2]
[420617373,1776347468421,-2518.79,0.0001041,2]
[420617374,1776347468431,-3037.06,0.0001041,2]
[420617375,1776347468440,-8442.91,0.0001041,2]
[420617376,1776347468451,-500.0,0.0001041,2]
[420617377,1776347468462,-2385.34,0.0001041,2]
[420617378,1776347468688,-500.0,0.0001041,2]
[420617379,1776347468701,-700.32,0.0001041,2]
[420617380,1776347468711,-2700.85,0.0001041,2]
[420617381,1776347468720,-7790.02,0.0001041,2]
[420617382,1776347468729,-500.0,0.0001041,2]
[420617383,1776347468739,-500.0,0.0001041,2]
[420617384,1776347468748,-1453.34,0.0001041,2]
[420617385,1776347468757,-313.66700333,0.0001041,2]
[420617386,1776347468766,-500.0,0.0001041,2]
[420617387,1776347468776,-1000.0,0.00010479,2]
[420617388,1776347468785,-492.0,0.00010479,2]
[420617389,1776347468794,-2846.96059868,0.00010496,2]
[420617390,1776347468803,-3959.87729616,0.00010496,2]
[420617391,1776347468812,-1442.80274377,0.000105,2]
[420617392,1776347468823,-1141.39786645,0.00010509,2]
[420617393,1776347468832,-1592.17306781,0.00010509,2]
[420617394,1776347468842,-3032.98641141,0.0001053,2]
[420617395,1776347468851,-801.69398883,0.00010544,10]
[420617396,1776347468860,-168.3888056,0.00010545,2]
[420617397,1776347468869,-354.34481739,0.00010547,2]
[420617398,1776347468879,-2579.17784983,0.00010547,2]
[420617399,1776347468888,-739.83732269,0.00010559,2]
[420617400,1776347468897,-813.8254877,0.00010559,2]
[420617401,1776347468907,-1232.31620736,0.00010564,2]
[420617402,1776347468917,-565.69675657,0.00010568,2]
[420617403,1776347468927,-440.18067252,0.00010573,2]
[420617404,1776347468936,-349.74961959,0.00010579,2]
[420617405,1776347468945,-336.03644636,0.00010594,2]
[420617406,1776347468954,-2008.0,0.00010628,2]
[420617407,1776347468963,-2846.96059868,0.00010661,2]
[420617408,1776347468973,-3959.87729616,0.00010661,2]
[420617409,1776347468983,-1442.80274377,0.00010667,2]
[420617410,1776347468992,-1141.39786645,0.00010678,2]
[420617411,1776347469002,-1592.17306781,0.00010678,2]
[420617412,1776347469011,-785.1512,0.00010684,2]
[420617413,1776347469020,-500.0,0.00010684,2]
[420617414,1776347469030,-500.0,0.00010684,2]
[420617415,1776347469039,-304.0467456,0.00010684,2]
[420617416,1776347469049,-805.38,0.00010684,2]
[420617417,1776347469058,-1051.46,0.00010684,2]
[420617418,1776347469068,-617.69,0.00010684,2]
[420617419,1776347469079,-3113.23,0.00010684,2]
[420617420,1776347469088,-4117.36,0.00010684,2]
[420617421,1776347469097,-1481.67,0.00010684,2]
[420617422,1776347469108,-1042.93,0.00010684,2]
[420617423,1776347469118,-3856.94,0.00010684,2]
[420617424,1776347469128,-1720.25,0.00010684,2]
[420617425,1776347469137,-2155.85,0.00010684,2]
[420617426,1776347469147,-577.9,0.00010684,2]
[420617427,1776347469156,-1662.32,0.00010684,2]
[420617428,1776347469166,-535.90397255,0.00010684,2]
[420617429,1776347469175,-500.0,0.00010684,2]
[420617430,1776347469184,-1832.25,0.00010684,2]
[420617431,1776347469194,-500.0,0.00010684,2]
[420617432,1776347469203,-500.0,0.00010684,2]
[420617433,1776347469212,-831.28,0.00010684,2]
[420617434,1776347469221,-173.35993312,0.00010684,2]
[420617435,1776347469231,-2910.83,0.00010684,2]
[420617436,1776347469240,-881.83,0.00010684,2]
[420617437,1776347469249,-468.38945438,0.00010684,2]
[420617438,1776347469258,-688.35,0.00010684,2]
[420617439,1776347469268,-500.0,0.00010684,2]
[420617440,1776347469277,-500.0,0.00010684,2]
[420617441,1776347469287,-500.0,0.00010684,2]
[420617442,1776347469296,-1033.21,0.00010684,2]
[420617443,1776347469305,-603.22,0.00010684,2]
[420617444,1776347469315,-509.78,0.00010684,2]
[420617445,1776347469324,-1867.39,0.00010684,2]
[420617446,1776347469334,-500.0,0.00010684,2]
[420617447,1776347469344,-500.0,0.00010684,2]
[420617448,1776347469354,-500.0,0.00010684,2]
[420617449,1776347469365,-656.19,0.00010684,2]
[420617450,1776347469375,-837.05,0.00010684,2]
[420617451,1776347469384,-705.26,0.00010684,2]
[420617452,1776347469394,-515.0,0.00010684,2]
[420617453,1776347469404,-822.26,0.00010684,2]
[420617454,1776347469414,-2699.92,0.00010684,2]
[420617455,1776347469424,-1480.64,0.00010684,2]
[420617456,1776347469433,-615.88,0.00010684,2]
[420617457,1776347469443,-918.3,0.00010684,2]
[420617458,1776347469452,-2010.87,0.00010684,2]
[420617459,1776347469465,-2645.38,0.00010684,2]
[420617460,1776347469475,-500.0,0.00010684,2]
[420617461,1776347469484,-500.0,0.00010684,2]
[420617462,1776347469495,-500.0,0.00010684,2]
[420617463,1776347469506,-1162.62,0.00010684,2]
[420617464,1776347469516,-500.0,0.00010684,2]
[420617465,1776347469526,-500.0,0.00010684,2]
[420617466,1776347469537,-500.0,0.00010684,2]
[420617467,1776347469546,-1196.0,0.00010684,2]
[420617468,1776347469556,-1007.96,0.00010684,2]
[420617469,1776347469566,-500.0,0.00010684,2]
[420617470,1776347469576,-1505.24,0.00010684,2]
[420617471,1776347469586,-2140.91,0.00010684,2]
[420617472,1776347469596,-500.0,0.00010684,2]
[420617473,1776347469606,-500.0,0.00010684,2]
[420617474,1776347469617,-500.0,0.00010684,2]
[420617475,1776347469626,-2489.33,0.00010684,2]
[420617476,1776347469636,-3728.42,0.00010684,2]
[420617477,1776347469645,-784.3,0.00010684,2]
[420617478,1776347469655,-4366.97,0.00010684,2]
[420617479,1776347469664,-1672.76,0.00010684,2]
[420617480,1776347469674,-2208.62,0.00010684,2]
[420617481,1776347469687,-482.45474178,0.00010684,2]
[420617482,1776347469696,-2586.11,0.00010684,2]
[420617483,1776347469707,-550.87,0.00010684,2]
[420617484,1776347469716,-1909.16,0.00010684,2]
[420617485,1776347469726,-1990.16,0.00010684,2]
[420617486,1776347469735,-554.7901,0.00010684,2]
[420617487,1776347469745,-1773.48,0.00010684,2]
[420617488,1776347469755,-2744.3,0.00010684,2]
[420617489,1776347469764,-1324.63,0.00010684,2]
[420617490,1776347469774,-1629.3,0.00010684,2]
[420617491,1776347469783,-6728.9,0.00010684,2]
[420617492,1776347469793,-500.0,0.00010684,2]
[420617493,1776347469803,-3011.81,0.00010684,2]
[420617494,1776347469812,-6483.02,0.00010684,2]
[420617495,1776347469822,-8143.34,0.00010684,2]
[420617496,1776347469832,-1204.32,0.00010684,2]
[420617497,1776347469841,-3004.44,0.00010684,2]
[420617498,1776347469851,-1897.3,0.00010684,2]
[420617499,1776347469860,-1433.85,0.00010684,2]
[420617500,1776347469869,-5719.79,0.00010684,2]
[420617501,1776347469878,-500.0,0.00010684,2]
[420617502,1776347469887,-1953.06,0.00010684,2]
[420617503,1776347469896,-500.0,0.00010684,2]
[420617504,1776347469906,-1434.8,0.00010684,2]
[420617505,1776347469916,-434.12353394,0.00010684,2]
[420617506,1776347469926,-1718.57,0.00010684,2]
[420617507,1776347469935,-500.0,0.00010684,2]
[420617508,1776347469948,-2610.98,0.00010684,2]
[420617509,1776347469959,-500.0,0.00010684,2]
[420617510,1776347469969,-500.0,0.00010684,2]
[420617511,1776347469979,-500.0,0.00010684,2]
[420617512,1776347469988,-1095.12,0.00010684,2]
[420617513,1776347469998,-2304.72,0.00010684,2]
[420617514,1776347470007,-565.01,0.00010684,2]
[420617515,1776347470016,-4389.23,0.00010684,2]
[420617516,1776347470026,-500.0,0.00010684,2]
[420617517,1776347470037,-530.36,0.00010684,2]
[420617518,1776347470046,-500.0,0.00010684,2]
[420617519,1776347470055,-500.0,0.00010684,2]
[420617520,1776347470064,-583.46,0.00010684,2]
[420617521,1776347470073,-7351.49,0.00010684,2]
[420617522,1776347470083,-972.65,0.00010684,2]
[420617523,1776347470092,-720.2,0.00010684,2]
[420617524,1776347470102,-1125.29,0.00010684,2]
[420617525,1776347470112,-500.0,0.00010684,2]
[420617526,1776347470121,-1840.97,0.00010684,2]
[420617527,1776347470131,-1150.52,0.00010684,2]
[420617528,1776347470140,-656.5,0.00010684,2]
[420617529,1776347470150,-500.0,0.00010684,2]
[420617530,1776347470160,-500.0,0.00010684,2]
[420617531,1776347470170,-3373.04,0.00010684,2]
[420617532,1776347470181,-961.2,0.00010684,2]
[420617533,1776347470191,-1605.32,0.00010684,2]
[420617534,1776347470203,-3525.06,0.00010684,2]
[420617535,1776347470212,-500.0,0.00010684,2]
[420617536,1776347470222,-32291.38,0.00010684,2]
[420617537,1776347470232,-887.71,0.00010684,2]
[420617538,1776347470243,-5369.93,0.00010684,2]
[420617539,1776347470254,-574.18,0.00010684,2]
[420617540,1776347470264,-1115.51,0.00010684,2]
[420617541,1776347470274,-3059.1,0.00010684,2]
[420617542,1776347470284,-500.0,0.00010684,2]
[420617543,1776347470294,-500.0,0.00010684,2]
[420617544,1776347470304,-576.3,0.00010684,2]
[420617545,1776347470314,-929.78,0.00010684,2]
[420617546,1776347470325,-19594.06,0.00010684,2]
[420617547,1776347470334,-665.79,0.00010684,2]
[420617548,1776347470344,-23951.21,0.00010684,2]
[420617549,1776347470362,-500.0,0.00010684,2]
[420617550,1776347470376,-500.0,0.00010684,2]
[420617551,1776347470386,-537.41,0.00010684,2]
[420617552,1776347470396,-2518.79,0.00010684,2]
[420617553,1776347470406,-3037.06,0.00010684,2]
[420617554,1776347470416,-8442.91,0.00010684,2]
[420617555,1776347470427,-500.0,0.00010684,2]
[420617556,1776347470437,-2385.34,0.00010684,2]
[420617557,1776347470447,-500.0,0.00010684,2]
[420617558,1776347470457,-700.32,0.00010684,2]
[420617559,1776347470466,-2700.85,0.00010684,2]
[420617560,1776347470476,-7790.02,0.00010684,2]
[420617561,1776347470487,-500.0,0.00010684,2]
[420617562,1776347470497,-500.0,0.00010684,2]
[420617563,1776347470508,-1453.34,0.00010684,2]
[420617564,1776347470518,-500.0,0.00010684,2]
[420617565,1776347470529,-189.23,0.00010685,2]
[420617566,1776347470540,-189.23,0.00010685,2]
[420617567,1776347470550,-189.24,0.00010685,2]
[420617568,1776347470560,-173.69,0.00010685,2]
[420617569,1776347470569,-259.89,0.00010685,2]
[420617570,1776347470580,-3013.50463069,0.00010764,2]
[420617571,1776347470590,-2846.96059868,0.00010827,7]
[420617572,1776347470600,-3959.87729616,0.00010827,7]
[420617573,1776347470610,-1442.80274377,0.00010834,7]
[420617574,1776347470619,-813.8254877,0.00010838,7]
[420617575,1776347470629,-739.83732269,0.00010838,7]
[420617576,1776347470639,-1141.39786645,0.00010848,7]
[420617577,1776347470648,-1592.17306781,0.00010848,7]
[420617578,1776347470658,-440.18067252,0.0001086,7]
[420617579,1776347470668,-801.69398883,0.00010907,12]
[420617580,1776347470678,-785.1512,0.00010958,2]
[420617581,1776347470688,-500.0,0.00010958,2]
[420617582,1776347470697,-359.64415859,0.00010958,2]
[420617583,1776347470707,-805.38,0.00010958,2]
[420617584,1776347470716,-1051.46,0.00010958,2]
[420617585,1776347470726,-617.69,0.00010958,2]
[420617586,1776347470736,-3113.23,0.00010958,2]
[420617587,1776347470746,-4117.36,0.00010958,2]
[420617588,1776347470757,-1481.67,0.00010958,2]
[420617589,1776347470768,-1042.93,0.00010958,2]
[420617590,1776347470778,-3856.94,0.00010958,2]
[420617591,1776347470787,-1720.25,0.00010958,2]
[420617592,1776347470796,-2155.85,0.00010958,2]
[420617593,1776347470806,-577.9,0.00010958,2]
[420617594,1776347470816,-1662.32,0.00010958,2]
[420617595,1776347470826,-365.93047007,0.00010958,2]
[420617596,1776347470835,-1832.25,0.00010958,2]
[420617597,1776347470845,-274.64959968,0.00010958,2]
[420617598,1776347470854,-500.0,0.00010958,2]
[420617599,1776347470864,-831.28,0.00010958,2]
[420617600,1776347470873,-2910.83,0.00010958,2]
[420617601,1776347470885,-881.83,0.00010958,2]
[420617602,1776347470895,-688.35,0.00010958,2]
[420617603,1776347470907,-500.0,0.00010958,2]
[420617604,1776347470917,-500.0,0.00010958,2]
[420617605,1776347470926,-500.0,0.00010958,2]
[420617606,1776347470936,-1033.21,0.00010958,2]
[420617607,1776347470946,-603.22,0.00010958,2]
[420617608,1776347470955,-509.78,0.00010958,2]
[420617609,1776347470966,-1867.39,0.00010958,2]
[420617610,1776347470978,-500.0,0.00010958,2]
[420617611,1776347470988,-500.0,0.00010958,2]
[420617612,1776347470998,-500.0,0.00010958,2]
[420617613,1776347471007,-656.19,0.00010958,2]
[420617614,1776347471017,-837.05,0.00010958,2]
[420617615,1776347471028,-705.26,0.00010958,2]
[420617616,1776347471038,-822.26,0.00010958,2]
[420617617,1776347471048,-2699.92,0.00010958,2]
[420617618,1776347471058,-1480.64,0.00010958,2]
[420617619,1776347471067,-615.88,0.00010958,2]
[420617620,1776347471077,-918.3,0.00010958,2]
[420617621,1776347471087,-2010.87,0.00010958,2]
[420617622,1776347471096,-2645.38,0.00010958,2]
[420617623,1776347471105,-500.0,0.00010958,2]
[420617624,1776347471115,-500.0,0.00010958,2]
[420617625,1776347471125,-199.37354745,0.00010958,2]
[420617626,1776347471135,-1162.62,0.00010958,2]
[420617627,1776347471145,-500.0,0.00010958,2]
[420617628,1776347471155,-500.0,0.00010958,2]
[420617629,1776347471164,-500.0,0.00010958,2]
[420617630,1776347471173,-1196.0,0.00010958,2]
[420617631,1776347471182,-1007.96,0.00010958,2]
[420617632,1776347471192,-506.69299907,0.00010958,2]
[420617633,1776347471201,-1505.24,0.00010958,2]
[420617634,1776347471210,-2140.91,0.00010958,2]
[420617635,1776347471220,-500.0,0.00010958,2]
[420617636,1776347471229,-500.0,0.00010958,2]
[420617637,1776347471238,-500.0,0.00010958,2]
[420617638,1776347471250,-2489.33,0.00010958,2]
[420617639,1776347471259,-3728.42,0.00010958,2]
[420617640,1776347471269,-784.3,0.00010958,2]
[420617641,1776347471279,-4366.97,0.00010958,2]
[420617642,1776347471288,-1672.76,0.00010958,2]
[420617643,1776347471297,-2208.62,0.00010958,2]
[420617644,1776347471306,-2586.11,0.00010958,2]
[420617645,1776347471316,-550.87,0.00010958,2]
[420617646,1776347471326,-1909.16,0.00010958,2]
[420617647,1776347471336,-1990.16,0.00010958,2]
[420617648,1776347471345,-554.7901,0.00010958,2]
[420617649,1776347471354,-1773.48,0.00010958,2]
[420617650,1776347471363,-2744.3,0.00010958,2]
[420617651,1776347471372,-1324.63,0.00010958,2]
[420617652,1776347471383,-6728.9,0.00010958,2]
[420617653,1776347471392,-1629.3,0.00010958,2]
[420617654,1776347471402,-500.0,0.00010958,2]
[420617655,1776347471412,-3011.81,0.00010958,2]
[420617656,1776347471422,-6483.02,0.00010958,2]
[420617657,1776347471434,-8143.34,0.00010958,2]
[420617658,1776347471443,-1204.32,0.00010958,2]
[420617659,1776347471453,-3004.44,0.00010958,2]
[420617660,1776347471462,-1897.3,0.00010958,2]
[420617661,1776347471471,-1433.85,0.00010958,2]
[420617662,1776347471482,-5719.79,0.00010958,2]
[420617663,1776347471492,-500.0,0.00010958,2]
[420617664,1776347471502,-1953.06,0.00010958,2]
[420617665,1776347471512,-500.0,0.00010958,2]
[420617666,1776347471522,-1434.8,0.00010958,2]
[420617667,1776347471531,-1718.57,0.00010958,2]
[420617668,1776347471541,-500.0,0.00010958,2]
[420617669,1776347471550,-2610.98,0.00010958,2]
[420617670,1776347471560,-500.0,0.00010958,2]
[420617671,1776347471569,-500.0,0.00010958,2]
[420617672,1776347471580,-500.0,0.00010958,2]
[420617673,1776347471589,-1095.12,0.00010958,2]
[420617674,1776347471599,-2304.72,0.00010958,2]
[420617675,1776347471608,-565.01,0.00010958,2]
[420617676,1776347471617,-4389.23,0.00010958,2]
[420617677,1776347471626,-500.0,0.00010958,2]
[420617678,1776347471636,-530.36,0.00010958,2]
[420617679,1776347471646,-500.0,0.00010958,2]
[420617680,1776347471655,-500.0,0.00010958,2]
[420617681,1776347471665,-583.46,0.00010958,2]
[420617682,1776347471674,-7351.49,0.00010958,2]
[420617683,1776347471684,-972.65,0.00010958,2]
[420617684,1776347471694,-720.2,0.00010958,2]
[420617685,1776347471704,-1125.29,0.00010958,2]
[420617686,1776347471713,-500.0,0.00010958,2]
[420617687,1776347471723,-1840.97,0.00010958,2]
[420617688,1776347471732,-1150.52,0.00010958,2]
[420617689,1776347471903,-656.5,0.00010958,2]
[420617690,1776347471913,-500.0,0.00010958,2]
[420617691,1776347471923,-500.0,0.00010958,2]
[420617692,1776347471932,-3373.04,0.00010958,2]
[420617693,1776347471942,-961.2,0.00010958,2]
[420617694,1776347471951,-1605.32,0.00010958,2]
[420617695,1776347471960,-3525.06,0.00010958,2]
[420617696,1776347471969,-500.0,0.00010958,2]
[420617697,1776347471978,-6424.88844844,0.00010958,2]
[420617698,1776347472476,-500.0,6.318e-05,2]
[420617699,1776347472486,-500.0,6.318e-05,2]
[420617700,1776347472495,-151.0,8.219e-05,2]
[420617701,1776347472504,-151.0,8.219e-05,2]
[420617702,1776347472514,-151.68053369,8.219e-05,2]
[420617703,1776347472523,-588.93,9.589e-05,2]
[420617704,1776347472533,-588.93,9.863e-05,2]
[420617705,1776347472542,-588.93,0.00010136,2]
[420617706,1776347472551,-588.93,0.0001041,2]
[420617707,1776347472561,-588.93,0.00010684,2]
[420617708,1776347472570,-3049.89540596,0.00010958,2]
[420617709,1776348043848,-3996.55024036,5.886e-05,2]
[420617711,1776348197585,-504.0,5.826e-05,2]
[420617712,1776348197611,-317.37910868,5.827e-05,2]
[420617713,1776348197639,-4625.8209358,5.827e-05,2]
[420617714,1776348197666,-1003.44975964,5.886e-05,2]
[420617715,1776348197692,-500.0,5.945e-05,2]
[420617716,1776348197716,-480.85882639,5.945e-05,2]
[420617717,1776348197742,-1000.0,6e-05,2]
[420617718,1776348197766,-259.0,6.005e-05,2]
[420617719,1776348197790,-716.92706555,6.379e-05,2]
[420617720,1776348197819,-300.0,6.379e-05,2]
[420617721,1776348197849,-292.56430394,6.379e-05,2]
[420617722,1776348297080,-500.0,5.71e-05,2]
[420617723,1776348338101,-3496.55024036,5.71e-05,2]
[420617724,1776348338125,-502.0,5.71e-05,2]
[420617725,1776348338148,-158.44975964,5.767e-05,2]
[420617726,1776348373696,-4157.0,5.709e-05,2]
[420617727,1776348373726,-502.0,5.709e-05,2]
[420617728,1776348373758,-341.0,5.768e-05,2]
[420617729,1776348395943,-4659.0,5.768e-05,2]
[420617730,1776348395964,-258.48,5.8e-05,2]
[420617731,1776348395991,-7.43569606,6.379e-05,2]
[420617732,1776348396015,-75.08430394,6.379e-05,2]
[420617747,1776348632103,-1115.3437,6.127e-05,2]
[420617837,1776348638436,-1826.176,6.127e-05,2]
[420617846,1776348638596,-2058.4803,6.127e-05,2]
[420617847,1776348638605,-5000.0,6.189e-05,2]
[420617848,1776348638614,-314.16291122,6.284e-05,2]
[420617850,1776348638624,-656.8489482,6.372e-05,2]
[420617851,1776348638633,-300.0,6.44e-05,2]
[420617852,1776348638642,-300.0,6.44e-05,2]
[420617853,1776348638652,-300.0,6.44e-05,2]
[420617854,1776348638660,-300.0,6.44e-05,2]
[420617855,1776348638670,-300.0,6.44e-05,2]
[420617856,1776348638679,-300.0,6.44e-05,2]
[420617857,1776348638689,-300.0,6.44e-05,2]
[420617858,1776348638698,-300.0,6.44e-05,2]
[420617859,1776348638707,-300.0,6.44e-05,2]
[420617860,1776348638717,-300.0,6.44e-05,2]
[420617861,1776348638726,-300.0,6.44e-05,2]
[420617862,1776348638735,-300.0,6.44e-05,2]
[420617863,1776348638744,-300.0,6.44e-05,2]
[420617864,1776348638754,-300.0,6.44e-05,2]
[420617865,1776348638763,-300.0,6.44e-05,2]
[420617866,1776348638772,-151.0,6.687e-05,2]
[420617867,1776348638782,-693.0937291,7.533e-05,2]
[420617868,1776348638791,-152.0,7.538e-05,7]
[420617869,1776348638800,-19700.83188797,7.6e-05,2]
[420617870,1776348638810,-600.0,7.751e-05,2]
[420617871,1776348638818,-1181.22,8e-05,2]
[420617872,1776348638827,-500.0,8.116e-05,2]
[420617873,1776348638837,-500.0,8.116e-05,2]
[420617874,1776348638847,-500.0,8.116e-05,2]
[420617875,1776348638857,-500.0,8.116e-05,2]
[420617876,1776348638866,-500.0,8.116e-05,2]
[420617877,1776348638876,-551.79688321,8.116e-05,2]
[420617878,1776348638886,-165.34721579,8.116e-05,2]
[420617879,1776348638895,-500.0,8.116e-05,2]
[420617880,1776348638904,-500.0,8.116e-05,2]
[420617881,1776348638914,-500.0,8.116e-05,2]
[420617882,1776348638923,-500.0,8.116e-05,2]
[420617883,1776348638933,-500.0,8.116e-05,2]
[420617884,1776348638942,-500.0,8.116e-05,2]
[420617885,1776348638952,-500.0,8.116e-05,2]
[420617886,1776348638963,-91.01641792,8.116e-05,2]